bitfinex-derivatives/quotes_ETHF0:USTF0_20251216
["timestamp","ask_amount","ask_price","bid_price","bid_amount"]
[1765899126393,3.3178,2932.8,2932.1,3.2078]
[1765899126595,3.2078,2932.8,2932.3,1.4203]
[1765899126799,0.00511989,2933.1,2932.5,3.2078]
[1765899127300,2.18511989,2933.1,2932.5,3.2078]
[1765899127494,0.56511989,2933.1,2932.5,3.2078]
[1765899127794,2.43511989,2933.1,2932.8,3.2078]
[1765899128092,3.2078,2933.0,2932.3,1.4203]
[1765899128296,5.4778,2933.0,2932.1,3.2078]
[1765899128498,2.27,2933.0,2932.4,3.2078]
[1765899128699,1.71589891,2933.0,2932.4,3.2078]
[1765899128997,1.71589891,2933.0,2932.7,3.2078]
[1765899129599,1.71589891,2933.0,2932.4,3.2078]
[1765899129600,1.49427077,2933.0,2932.4,3.2078]
[1765899129799,1.49427077,2933.0,2932.5,0.43672275]
[1765899130096,0.00511989,2933.1,2932.6,0.43672275]
[1765899130395,0.00511989,2933.1,2933.0,1.4203]
[1765899130597,0.00511989,2933.1,2933.0,1.85702275]
[1765899131295,0.00511989,2933.1,2933.0,2.02753275]
[1765899131494,0.00320558,2933.6,2933.0,8.02753275]
[1765899131696,5.58e-06,2933.6,2933.4,3.2078]
[1765899131994,5.58e-06,2933.6,2933.5,0.43672275]
[1765899132898,5.58e-06,2933.6,2933.5,0.70849851]
[1765899133298,5.58e-06,2933.6,2933.5,0.43672275]
[1765899133495,5.58e-06,2933.6,2933.5,6.43672275]
[1765899133796,3.2078,2934.9,2933.7,1.4203]
[1765899134097,2.25,2934.9,2934.6,3.2078]
[1765899134400,3.2078,2936.3,2934.7,0.60713275]
[1765899134597,5.82184307,2936.3,2935.6,3.2078]
[1765899134793,3.2078,2936.0,2935.7,0.43672275]
[1765899134993,5.2256361,2936.0,2935.8,2.275e-05]
[1765899135194,0.17037,2935.5,2935.2,1.056e-05]
[1765899135390,3.2078,2935.3,2935.2,1.056e-05]
[1765899135792,3.2078,2935.5,2935.2,1.056e-05]
[1765899135999,0.00404307,2936.3,2935.2,0.17039056]
[1765899136300,0.00506889,2936.0,2935.2,1.056e-05]
[1765899136594,2.48506889,2936.0,2935.2,0.17039056]
[1765899137304,0.00506889,2936.0,2935.8,1.4203]
[1765899137503,0.79506889,2936.0,2935.8,1.4203]
[1765899137706,2.41506889,2936.0,2935.2,1.056e-05]
[1765899138299,1.21506889,2936.0,2935.2,1.056e-05]
[1765899138496,0.00506889,2936.0,2935.8,1.4203]
[1765899139503,0.00506889,2936.0,2935.8,4.02939307]
[1765899139801,0.60506889,2936.0,2935.9,3.2078]
[1765899140006,2.45506889,2936.0,2935.5,3.2078]
[1765899140501,8.45506889,2936.0,2935.5,3.2078]
[1765899140699,0.1704,2934.8,2934.7,0.00265859]
[1765899140899,5.8278,2934.8,2933.9,2.60909307]
[1765899141200,2.62,2934.8,2933.9,2.60909307]
[1765899141503,0.17038,2935.2,2933.4,7.64163327]
[1765899141504,0.17034,2935.9,2934.0,3.36613251]
[1765899141803,0.17039,2935.0,2934.9,1.056e-05]
[1765899142001,2.42,2935.0,2933.0,4.78643251]
[1765899142206,2.69030124,2935.0,2933.0,1.4203]
[1765899142506,0.17047,2933.7,2933.0,1.4203]
[1765899142697,6.17047,2933.6,2932.3,1.4203]
[1765899142897,2.46,2933.6,2932.3,1.4203]
[1765899143096,2.46,2933.6,2933.0,1.4203]
[1765899143097,0.00511056,2933.2,2933.0,1.4203]
[1765899143302,2.21511056,2933.2,2933.0,1.4203]
[1765899143498,0.00511056,2933.2,2933.0,1.4203]
[1765899144006,2.55511056,2933.2,2933.0,1.4203]
[1765899144607,8.55511056,2933.2,2932.7,0.00511056]
[1765899144800,2.55511056,2933.2,2933.0,1.4203]
[1765899145404,1.056e-05,2933.2,2933.0,1.4203]
[1765899145604,0.00316217,2933.6,2933.0,1.4203]
[1765899146106,2.38316217,2933.6,2933.0,1.4203]
[1765899146500,2.06824162,2933.6,2933.0,1.4203]
[1765899146705,0.00824162,2933.6,2933.0,1.4203]
[1765899147003,0.00824162,2933.6,2933.1,0.1705]
[1765899147209,0.00824162,2933.6,2933.2,0.17049]
[1765899147210,4.162e-05,2933.6,2933.2,0.17049]
[1765899147397,4.162e-05,2933.6,2933.3,0.17049]
[1765899147606,4.162e-05,2933.6,2933.0,1.4203]
[1765899147811,3.2078,2933.2,2933.0,1.4203]
[1765899148004,5.4778,2933.2,2932.7,0.00511056]
[1765899148211,3.2078,2932.8,2932.7,0.00511056]
[1765899148416,5.5678,2932.8,2932.0,3.2078]
[1765899148714,3.2078,2932.4,2931.6,1.4203]
[1765899149007,5.6278,2932.4,2931.6,1.4203]
[1765899149206,11.6278,2932.4,2931.6,1.4203]
[1765899149405,3.2078,2931.7,2931.6,1.4203]
[1765899149607,2.25,2931.7,2931.4,0.00511056]
[1765899150109,2.23,2931.7,2931.6,1.4203]
[1765899150312,5.4378,2931.7,2931.6,1.4203]
[1765899151101,11.4378,2931.7,2931.6,1.4203]
[1765899151407,11.4378,2931.7,2931.4,3.916e-05]
[1765899152012,5.4378,2931.7,2931.4,3.916e-05]
[1765899152515,6.0,2931.6,2931.4,3.916e-05]
[1765899152713,8.27,2931.6,2930.9,1.4203]
[1765899153010,3.2078,2931.0,2930.9,1.4203]
[1765899153212,3.3578,2931.0,2930.9,1.4203]
[1765899153508,3.2078,2931.0,2930.9,1.4203]
[1765899153708,0.00319487,2931.0,2930.9,1.42365116]
[1765899153916,3.21099487,2931.0,2930.9,1.42365116]
[1765899154413,0.00319487,2931.0,2930.9,1.42365116]
[1765899154806,3.21099487,2931.0,2930.9,1.42365116]
[1765899155310,0.00319487,2931.0,2930.9,1.42365116]
[1765899155513,3.2078,2931.6,2930.9,1.42365116]
[1765899155809,0.03,2931.6,2930.9,1.42365116]
[1765899156015,3.2078,2931.7,2931.6,1.6313]
[1765899156411,3.21026926,2931.7,2931.6,1.6313]
[1765899156809,0.00246926,2931.7,2931.6,1.6313]
[1765899157107,0.00511056,2931.9,2931.6,1.6313]
[1765899157509,3.2078,2931.7,2931.6,1.6313]
[1765899157913,3.21196013,2931.7,2931.6,1.6313]
[1765899158813,5.82196013,2931.7,2931.6,1.6313]
[1765899159017,5.42196013,2931.7,2931.6,1.6313]
[1765899160220,3.21196013,2931.7,2931.6,1.6313]
[1765899160413,0.00511056,2931.9,2931.6,1.6313]
[1765899160813,3.2078,2931.8,2931.6,1.6313]
[1765899161318,0.00511056,2931.9,2931.6,1.6313]
[1765899161616,0.00749917,2931.9,2931.6,1.6313]
[1765899161803,3.2078,2931.8,2931.6,1.6313]
[1765899163519,5.8478,2931.8,2931.6,1.6313]
[1765899164516,3.2078,2931.8,2931.6,1.6313]
[1765899164720,0.00749917,2931.9,2931.6,1.6313]
[1765899165312,3.2078,2932.1,2931.6,1.6313]
[1765899165512,3.2078,2932.7,2932.3,1.6313]
[1765899165915,3.2078,2932.7,2932.3,1.80184]
[1765899166111,3.2078,2932.7,2932.4,0.17054]
[1765899166316,3.2078,2933.3,2933.0,1.6313]
[1765899166518,3.2078,2933.3,2933.0,0.00245901]
[1765899166722,0.1705,2933.2,2933.0,0.00245901]
[1765899166914,5.43082395,2933.3,2933.0,1.63375901]
[1765899166915,3.21082395,2933.3,2933.0,1.63375901]
[1765899167125,5.54082395,2933.3,2933.0,1.63375901]
[1765899167425,5.92082395,2933.3,2933.0,1.63375901]
[1765899167720,2.23302395,2933.3,2933.0,1.63375901]
[1765899167925,5.44082395,2933.3,2933.0,1.63375901]
[1765899168124,5.40082395,2933.3,2933.0,0.00245901]
[1765899168726,5.40082395,2933.3,2933.0,1.63375901]
[1765899169114,5.40082395,2933.3,2932.3,4.84421056]
[1765899169115,0.1705,2933.2,2932.3,1.63641056]
[1765899169316,3.2078,2933.0,2932.3,1.63641056]
[1765899169618,5.6978,2933.0,2932.3,1.63641056]
[1765899169816,5.7678,2933.0,2932.4,3.2078]
[1765899170018,5.7678,2933.0,2932.3,1.80695056]
[1765899170215,5.7678,2933.0,2932.3,5.01733573]
[1765899170612,3.2078,2932.7,2932.3,1.63899573]
[1765899170820,5.8478,2932.7,2932.3,1.63899573]
[1765899171519,3.2078,2933.0,2932.3,1.63899573]
[1765899171726,3.2078,2932.7,2932.3,1.63899573]
[1765899172021,3.2078,2932.4,2932.3,1.63899573]
[1765899172222,2.46,2932.4,2932.3,1.63899573]
[1765899172417,2.46,2932.4,2932.3,0.00769573]
[1765899172624,0.24,2932.4,2932.3,0.00769573]
[1765899172920,3.2078,2932.6,2932.3,0.00769573]
[1765899173121,5.5378,2932.6,2932.3,0.00769573]
[1765899173320,0.17351395,2933.3,2932.8,1.6313]
[1765899173321,3.2078,2933.0,2932.8,1.6313]
[1765899173525,3.7178,2933.0,2932.9,5.2059]
[1765899173714,5.6478,2933.0,2932.8,1.6313]
[1765899173920,4.1078,2933.0,2932.9,5.2059]
[1765899174213,3.2078,2933.0,2932.9,5.2059]
[1765899174414,3.2078,2933.0,2932.8,1.6313]
[1765899174625,3.2078,2933.0,2932.9,5.2059]
[1765899177821,0.00302395,2933.3,2932.9,5.2059]
[1765899177822,3.21082395,2933.3,2933.2,5.2059]
[1765899178130,3.2078,2933.7,2933.6,5.2059]
[1765899178425,3.2078,2934.0,2933.6,5.2059]
[1765899178630,3.2078,2934.0,2933.9,5.2059]
[1765899178929,3.2078,2934.3,2934.0,1.6313]
[1765899179119,5.51089651,2934.3,2934.0,1.6313]
[1765899179731,0.00309651,2934.3,2934.0,4.8391]
[1765899180033,5.2973,2934.1,2934.0,3.2078]
[1765899180224,2.48,2934.1,2933.9,0.00511056]
[1765899180425,2.69,2934.1,2933.9,0.00511056]
[1765899180627,0.00309651,2934.3,2934.0,1.6313]
[1765899180830,0.81309651,2934.3,2934.1,3.2078]
[1765899181130,0.81309651,2934.3,2933.9,0.00511056]
[1765899181131,5.2973,2934.0,2933.9,0.00511056]
[1765899181329,12.266,2934.0,2933.9,1.056e-05]
[1765899181533,12.43645,2934.0,2933.9,1.056e-05]
[1765899181825,18.43645,2934.0,2933.9,1.056e-05]
[1765899182030,51.68555,2934.0,2933.9,1.056e-05]
[1765899182225,10.7151,2934.0,2933.9,1.056e-05]
[1765899182421,5.2973,2934.0,2933.9,1.056e-05]
[1765899182625,18.4146,2934.0,2933.9,1.056e-05]
[1765899182823,0.1705,2933.1,2932.9,3.2078]
[1765899183029,3.37831,2933.0,2932.3,0.00258517]
[1765899183225,2.80051,2933.0,2932.3,1.63388517]
[1765899183830,2.63,2933.0,2932.4,0.00511056]
[1765899184632,2.36,2933.0,2932.4,0.00511056]
[1765899185130,0.24,2933.0,2932.4,0.00511056]
[1765899185331,0.00309651,2934.3,2932.8,0.17052]
[1765899185532,2.38309651,2934.3,2933.0,1.7641]
[1765899185733,2.38309651,2934.3,2933.7,1.7641]
[1765899185934,0.67309651,2934.3,2933.7,1.7641]
[1765899186138,0.00309651,2934.3,2933.7,1.7641]
[1765899186430,2.64,2934.3,2933.7,1.7641]
[1765899186625,0.00247592,2934.4,2933.7,1.7641]
[1765899186829,0.00247592,2934.4,2933.7,7.77265278]
[1765899187030,0.00247592,2934.4,2933.9,0.17045]
[1765899187228,0.00353171,2934.4,2933.7,7.77265278]
[1765899187438,0.00353171,2934.4,2933.8,10.65033256]
[1765899187934,0.00353171,2934.4,2934.3,3.2078]
[1765899188526,0.00353171,2934.4,2934.1,0.00511056]
[1765899188725,2.58353171,2934.4,2934.1,0.00511056]
[1765899188932,3.2078,2934.2,2934.1,0.00511056]
[1765899189235,5.5578,2934.2,2934.1,0.00511056]
[1765899189630,0.00353171,2934.4,2934.1,0.00511056]
[1765899189931,5.61133171,2934.4,2934.1,0.00511056]
[1765899190239,2.40353171,2934.4,2934.1,0.00511056]
[1765899190534,3.2078,2934.2,2934.1,0.00511056]
[1765899190732,5.4978,2934.2,2934.1,0.00511056]
[1765899190931,11.4978,2934.2,2934.1,0.00511056]
[1765899191135,11.66824,2934.2,2934.1,1.056e-05]
[1765899191831,52.46824,2934.2,2934.1,1.056e-05]
[1765899192638,46.46824,2934.2,2934.1,1.056e-05]
[1765899193038,5.4978,2934.2,2934.1,1.056e-05]
[1765899194724,3.2078,2934.2,2934.1,1.056e-05]
[1765899195730,0.00353171,2934.4,2934.1,1.056e-05]
[1765899196040,3.2078,2934.2,2934.1,1.056e-05]
[1765899196236,5.8178,2934.2,2934.1,1.056e-05]
[1765899196435,2.61,2934.2,2934.1,1.056e-05]
[1765899196735,2.44,2934.2,2934.1,1.056e-05]
[1765899197135,2.41,2934.2,2934.1,1.056e-05]
[1765899198137,8.41,2934.2,2934.1,1.056e-05]
[1765899198336,2.41,2934.2,2934.1,1.056e-05]
[1765899199035,8.58044,2934.2,2934.1,1.056e-05]
[1765899200339,9.4561074,2934.2,2934.1,1.056e-05]
[1765899200541,0.17048,2933.5,2932.3,1.63388517]
[1765899200739,3.2078,2932.8,2932.3,1.63388517]
[1765899200943,3.2078,2932.5,2932.3,1.63388517]
[1765899201139,5.6478,2932.5,2932.3,1.63388517]
[1765899201335,5.6478,2932.5,2932.3,0.00258517]
[1765899201540,5.6478,2932.5,2932.3,1.76668517]
[1765899201541,5.81834,2932.5,2932.3,1.76668517]
[1765899201745,5.81834,2932.5,2932.3,0.00258517]
[1765899201943,0.17054,2932.4,2932.1,0.00511056]
[1765899202239,3.2078,2932.2,2932.1,0.00511056]
[1765899202535,5.9178,2932.2,2932.1,0.00511056]
[1765899202943,5.92185734,2932.2,2932.1,0.0090004]
[1765899203237,2.67405734,2932.2,2932.1,0.0090004]
[1765899203441,3.2078,2932.5,2932.3,1.7641]
[1765899203943,0.00511056,2932.7,2932.3,10.9719]
[1765899204145,0.00511056,2932.7,2932.3,4.9719]
[1765899204542,0.00838176,2932.7,2932.3,8.01523256]
[1765899204743,3.2078,2933.3,2932.3,8.01523256]
[1765899204744,3.2078,2933.3,2933.0,1.7641]
[1765899205039,5.8878,2933.3,2932.3,1.7641]
[1765899205238,3.2078,2932.7,2932.3,1.7641]
[1765899205542,5.7078,2932.7,2932.3,1.7641]
[1765899205747,3.2078,2932.4,2932.3,1.7641]
[1765899205948,0.02,2932.4,2932.3,1.7641]
[1765899206146,0.0041083,2932.7,2932.3,7.7641]
[1765899206346,0.0041083,2932.7,2932.4,3.2078]
[1765899206545,1.886e-05,2932.8,2932.4,12.42167256]
[1765899206743,1.886e-05,2932.8,2932.5,3.04333256]
[1765899206945,1.886e-05,2932.8,2932.7,3.04333256]
[1765899207350,2.65001886,2932.8,2932.4,7.39357676]
[1765899207542,2.65001886,2932.8,2932.3,1.7641]
[1765899207543,3.2078,2932.6,2932.3,1.7641]
[1765899207848,40.80338609,2932.8,2932.3,1.7641]
[1765899208049,43.14338609,2932.8,2932.3,1.7641]
[1765899208847,43.38338609,2932.8,2932.3,1.7641]
[1765899209148,2.24338609,2932.8,2932.3,1.7641]
[1765899209349,2.52338609,2932.8,2932.3,1.7641]
[1765899209849,2.52338609,2932.8,2932.1,0.0090004]
[1765899209850,3.2078,2932.6,2932.1,0.0090004]
[1765899210041,3.2078,2932.2,2932.1,0.0090004]
[1765899210348,5.4478,2932.2,2932.1,0.0090004]
[1765899211246,2.24,2932.2,2932.1,0.0090004]
[1765899211444,5.4478,2932.2,2932.1,0.0090004]
[1765899211650,2.24,2932.2,2932.1,0.0090004]
[1765899211951,3.21118609,2932.8,2932.3,1.7641]
[1765899212342,3.21118609,2932.8,2932.4,0.17054]
[1765899212546,3.21118609,2932.8,2932.5,0.17054]
[1765899212749,3.21118609,2932.8,2932.5,3.21387256]
[1765899213243,3.21118609,2932.8,2932.6,3.04333256]
[1765899213448,0.17045,2934.1,2932.6,3.04333256]
[1765899213748,0.17045,2934.1,2932.6,6.25113256]
[1765899213749,3.2078,2933.3,2932.6,6.25113256]
[1765899213951,5.7578,2933.3,2932.6,3.2078]
[1765899214651,5.76024034,2933.3,2932.6,3.2078]
[1765899216448,0.00244034,2933.3,2933.0,4.7435]
[1765899216641,0.04244034,2933.3,2933.0,4.7435]
[1765899216845,0.00244034,2933.3,2933.0,4.7435]
[1765899217458,0.00244034,2933.3,2933.0,7.78683256]
[1765899218047,0.00244034,2933.3,2933.2,2.61498028]
[1765899218351,4.034e-05,2933.3,2933.2,5.82880284]
[1765899218552,4.034e-05,2933.3,2933.2,8.78547028]
[1765899218756,40.8,2934.7,2933.7,1.5357]
[1765899218943,40.8,2934.7,2934.1,3.2078]
[1765899218944,1.34,2934.7,2934.1,3.2078]
[1765899219249,1.34,2934.7,2933.9,0.00511056]
[1765899219455,40.8,2934.6,2933.9,0.00511056]
[1765899219652,43.20248249,2934.6,2933.9,0.00511056]
[1765899220250,2.40248249,2934.6,2933.9,0.00511056]
[1765899221054,3.37822,2934.5,2933.9,0.00511056]
[1765899221250,0.9804,2934.4,2933.9,0.00511056]
[1765899221557,3.2078,2934.3,2933.9,0.00511056]
[1765899221751,2.22,2934.3,2933.9,0.00511056]
[1765899223754,0.00248249,2934.6,2933.9,0.00511056]
[1765899223954,2.70248249,2934.6,2933.9,0.00511056]
[1765899225150,3.2078,2934.4,2933.9,0.00511056]
[1765899225353,3.2078,2934.4,2933.9,1.056e-05]
[1765899225354,3.37825,2934.0,2933.9,1.056e-05]
[1765899225664,5.68825,2934.0,2933.9,1.056e-05]
[1765899225864,11.68825,2934.0,2933.9,1.056e-05]
[1765899226166,52.48825,2934.0,2933.9,1.056e-05]
[1765899226360,1.5172,2933.7,2932.4,3.2078]
[1765899226563,3.2078,2932.7,2932.1,0.00388984]
[1765899226766,2.2,2932.7,2932.1,0.00388984]
[1765899227163,2.2,2932.7,2932.3,4.7435]
[1765899227764,2.2,2932.7,2932.2,0.00511056]
[1765899228765,2.2,2932.7,2932.4,3.2078]
[1765899229365,0.00511056,2932.8,2932.4,3.2078]
[1765899230775,0.00511056,2932.8,2932.5,2.61498028]
[1765899230970,0.00511056,2932.8,2932.7,3.2078]
[1765899231569,3.2078,2933.6,2932.8,1.5357]
[1765899231770,3.2078,2933.6,2933.4,1.5357]
[1765899232070,3.2078,2933.9,2933.0,6.25372937]
[1765899232273,5.3778,2933.9,2932.9,3.2078]
[1765899232677,3.6678,2933.9,2933.4,1.5357]
[1765899232878,5.7678,2933.9,2933.4,1.5357]
[1765899235082,3.2078,2933.9,2933.4,1.5357]
[1765899235783,3.2078,2933.9,2933.8,2.655]
[1765899236083,3.2078,2933.9,2933.4,4.58162937]
[1765899236279,3.6978,2933.9,2933.4,4.58162937]
[1765899236581,2.44,2933.9,2933.6,3.2078]
[1765899236776,2.0,2933.9,2933.6,3.2078]
[1765899237083,2.673,2933.7,2933.4,4.58162937]
[1765899237275,5.133,2933.7,2933.4,1.5357]
[1765899237678,5.3736,2933.2,2933.1,3.04592937]
[1765899237983,2.24,2933.2,2932.9,3.2078]
[1765899238774,3.2078,2934.0,2933.0,2.61498028]
[1765899238981,2.63,2934.0,2933.5,3.2078]
[1765899240681,2.63,2934.0,2933.8,3.2078]
[1765899240880,0.00248249,2934.6,2934.0,1.5357]
[1765899241182,1.24758075,2935.6,2934.5,3.2078]
[1765899241484,3.2078,2935.5,2934.8,3.2078]
[1765899241690,0.17037,2935.4,2934.5,3.2078]
[1765899241882,3.2078,2935.3,2934.2,6.25323486]
[1765899242179,3.2078,2935.0,2934.2,3.2078]
[1765899242381,0.00294052,2935.3,2934.4,3.04543486]
[1765899242580,0.67294052,2935.3,2935.1,1.5357]
[1765899242785,0.00294052,2935.3,2935.1,1.5357]
[1765899243179,2.24294052,2935.3,2935.1,1.5357]
[1765899243379,0.00294052,2935.3,2935.1,1.5357]
[1765899243783,4.052e-05,2935.3,2935.2,0.17038]
[1765899243984,4.052e-05,2935.3,2935.1,8.84184816]
[1765899244288,4.052e-05,2935.3,2935.1,1.5357]
[1765899244483,4.052e-05,2935.3,2935.2,0.17038]
[1765899244685,2.61418602,2937.4,2935.2,0.17038]
[1765899244686,3.2078,2936.9,2935.8,1.5566]
[1765899244888,2.2,2936.9,2936.2,3.2078]
[1765899245387,5.4078,2936.9,2936.1,0.00511056]
[1765899245589,5.41150694,2936.9,2936.2,3.2078]
[1765899245783,3.2078,2936.6,2936.1,0.00511056]
[1765899245983,3.2078,2936.2,2936.1,1.056e-05]
[1765899246190,5.4478,2936.2,2936.1,1.056e-05]
[1765899246389,11.4478,2936.2,2936.1,1.056e-05]
[1765899247878,52.2478,2936.2,2936.1,1.056e-05]
[1765899248083,52.41812,2936.2,2936.1,1.056e-05]
[1765899248284,0.17036,2935.5,2934.7,3.2078]
[1765899248485,2.85036,2935.5,2934.7,3.2078]
[1765899249288,2.85036,2935.5,2934.8,0.00511056]
[1765899250089,2.47,2935.5,2935.0,3.2078]
[1765899250294,2.47,2935.5,2934.8,0.00511056]
[1765899250996,3.2078,2935.4,2934.8,0.00511056]
[1765899251195,5.4578,2935.4,2934.8,0.00511056]
[1765899251690,3.37819,2935.1,2934.8,0.00511056]
[1765899251890,5.57819,2935.1,2934.8,0.00511056]
[1765899252192,7.06129,2935.1,2934.8,0.00511056]
[1765899252386,5.57819,2935.1,2934.8,0.00511056]
[1765899252690,2.2,2935.1,2934.8,0.00511056]
[1765899253493,2.4,2935.1,2934.8,3.21291056]
[1765899253794,0.35,2935.1,2934.8,3.21291056]
[1765899253986,3.2078,2935.4,2934.8,3.21291056]
[1765899254288,5.6778,2935.4,2934.8,3.21291056]
[1765899254684,3.2078,2935.4,2934.8,3.21291056]
[1765899255086,5.7778,2935.4,2934.8,3.21291056]
[1765899255692,5.7778,2935.4,2934.8,0.00511056]
[1765899255886,3.37819,2935.1,2934.8,0.00511056]
[1765899256086,5.70819,2935.1,2934.8,0.00511056]
[1765899256283,2.33,2935.1,2934.8,0.00511056]
[1765899257295,5.5378,2935.1,2934.8,0.00511056]
[1765899259190,0.1704,2934.9,2934.8,1.056e-05]
[1765899259389,2.8804,2934.9,2934.8,1.056e-05]
[1765899259789,49.6804,2934.9,2934.8,1.056e-05]
[1765899260095,1.2741,2934.4,2933.0,4.59526244]
[1765899260299,3.37824,2934.1,2933.4,3.2078]
[1765899260593,0.13,2934.1,2933.7,4.7644]
[1765899260790,3.2078,2934.8,2934.0,3.2078]
[1765899260988,2.48,2934.8,2934.4,1.5566]
[1765899261297,3.2078,2934.6,2934.4,1.55975656]
[1765899261498,5.5178,2934.6,2934.4,1.55975656]
[1765899262101,5.6678,2934.6,2934.4,1.55975656]
[1765899262991,5.6678,2934.6,2934.4,0.00315656]
[1765899263399,5.6678,2934.6,2934.4,1.55975656]
[1765899263896,0.00412782,2934.8,2934.4,1.55975656]
[1765899264104,1.00412782,2934.8,2934.4,1.55975656]
[1765899264499,0.00412782,2934.8,2934.4,1.55975656]
[1765899264708,2.54412782,2934.8,2934.4,1.55975656]
[1765899265198,2.54412782,2934.8,2934.7,3.2078]
[1765899265199,0.00412782,2934.8,2934.7,3.2078]
[1765899265903,3.2078,2935.8,2935.1,1.5566]
[1765899266098,3.2078,2935.5,2934.7,3.2078]
[1765899266299,3.2078,2935.2,2934.4,7.806219]
[1765899266505,5.6278,2935.2,2935.1,1.5566]
[1765899266901,5.63109002,2935.2,2935.1,1.5566]
[1765899267102,5.63109002,2935.2,2934.4,4.76755656]
[1765899267407,3.21109002,2935.2,2935.1,1.5566]
[1765899267609,5.91109002,2935.2,2935.1,1.5566]
[1765899267908,2.45329002,2935.2,2935.1,1.5566]
[1765899268107,5.66109002,2935.2,2935.1,1.5566]
[1765899269001,5.66109002,2935.2,2934.4,4.76755656]
[1765899270207,5.66109002,2935.2,2934.4,1.55975656]
[1765899270501,0.17043,2934.4,2934.3,1.056e-05]
[1765899270806,2.73043,2934.4,2934.3,1.056e-05]
[1765899271012,8.73043,2934.4,2934.3,1.056e-05]
[1765899271211,50.48503875,2934.4,2932.9,3.03866244]
[1765899271510,3.2078,2933.0,2932.9,0.00310798]
[1765899271704,2.65338468,2933.0,2932.9,0.00310798]
[1765899272709,5.86118468,2933.0,2932.9,0.00310798]
[1765899272910,2.65338468,2933.0,2932.9,0.00310798]
[1765899273212,5.86118468,2933.0,2932.9,0.00310798]
[1765899273408,2.34338468,2933.0,2932.9,6.00310798]
[1765899273598,1.056e-05,2933.2,2933.0,1.5566]
[1765899273804,1.056e-05,2933.2,2933.1,6.1705]
[1765899274306,1.056e-05,2933.2,2933.1,10.42462741]
[1765899274510,1.899e-05,2933.2,2933.1,22.3423]
[1765899275414,1.899e-05,2933.2,2933.1,16.3423]
[1765899275703,2.955e-05,2933.4,2933.2,6.0]
[1765899275910,2.955e-05,2933.4,2933.3,4.26518934]
[1765899276212,2.955e-05,2933.4,2933.3,3.04682224]
[1765899276612,0.00384824,2933.4,2933.3,3.04682224]
[1765899277010,4.824e-05,2933.4,2933.1,21.55148934]
[1765899277213,4.824e-05,2933.4,2933.2,3.13022743]
[1765899277514,4.824e-05,2933.4,2933.3,4.26518934]
[1765899278307,4.824e-05,2933.4,2933.3,4.26696884]
[1765899278513,4.824e-05,2933.4,2933.3,10.26696884]
[1765899279108,4.824e-05,2933.4,2933.3,22.218]
[1765899279409,4.824e-05,2933.4,2933.2,4.26696884]
[1765899279609,4.824e-05,2933.4,2933.1,23.69276884]
[1765899280316,4.824e-05,2933.4,2933.2,20.48496884]
[1765899282414,4.824e-05,2933.4,2933.3,0.17049]
[1765899283011,3.2078,2934.8,2934.4,1.4892]
[1765899283211,5.4378,2934.8,2934.4,1.4892]
[1765899284016,5.44215256,2934.8,2934.4,1.4892]
[1765899284219,3.2078,2934.5,2934.3,0.00511056]
[1765899284419,3.2078,2934.4,2934.3,0.00511056]
[1765899284715,5.4278,2934.4,2934.3,0.00511056]
[1765899285019,11.4278,2934.4,2934.3,1.056e-05]
[1765899285423,11.59823,2934.4,2934.3,1.056e-05]
[1765899286619,5.4278,2934.4,2934.3,1.056e-05]
[1765899286816,3.2078,2934.4,2934.3,1.056e-05]
[1765899287014,5.6678,2934.4,2934.3,1.056e-05]
[1765899288021,11.83823,2934.4,2934.3,1.056e-05]
[1765899288319,12.71173,2934.4,2934.3,1.056e-05]
[1765899288615,6.71173,2934.4,2934.3,1.056e-05]
[1765899292128,5.6678,2934.4,2934.3,2.36581056]
[1765899292322,2.46,2934.4,2934.3,2.36581056]
[1765899292529,2.8116,2934.4,2934.3,1.056e-05]
[1765899292828,0.00511056,2934.6,2934.3,1.056e-05]
[1765899293029,1.36511056,2934.6,2934.3,1.056e-05]
[1765899293228,3.2078,2934.5,2934.3,1.056e-05]
[1765899293537,5.6378,2934.5,2934.3,1.056e-05]
[1765899294135,0.17043,2934.4,2934.3,1.056e-05]
[1765899294333,2.34043,2934.4,2934.3,1.056e-05]
[1765899295034,43.14043,2934.4,2934.3,1.056e-05]
[1765899299136,43.14043,2934.4,2933.0,1.5566]
[1765899299137,0.1843,2933.1,2933.0,1.5566]
[1765899299341,2.8986,2933.1,2933.0,1.5566]
[1765899299937,2.7143,2933.1,2933.0,1.5566]
[1765899300436,0.6044,2933.1,2933.0,1.5566]
[1765899300743,2.66,2933.1,2933.0,3.9224]
[1765899300938,2.7972,2933.1,2933.0,1.5566]
[1765899301145,3.2078,2933.8,2933.7,4.8461]
[1765899301344,0.00511056,2934.6,2934.0,1.4892]
[1765899301536,0.00511056,2934.6,2934.3,6.25595933]
[1765899301840,0.00511056,2934.6,2933.4,1.4892]
[1765899301841,0.17043,2934.4,2933.6,3.04815933]
[1765899302042,0.17043,2934.4,2933.4,1.4892]
[1765899302043,3.2078,2933.7,2933.4,1.4892]
[1765899302243,5.9078,2933.7,2933.4,1.4892]
[1765899302441,3.2078,2934.2,2933.5,3.04815933]
[1765899302631,3.2078,2933.6,2933.1,3.04815933]
[1765899302938,5.7078,2933.6,2933.1,3.04815933]
[1765899303347,3.2078,2934.0,2933.7,1.4892]
[1765899303542,0.00511056,2934.6,2934.4,1.4132]
[1765899304046,0.00511056,2934.6,2934.5,3.05514]
[1765899304345,1.056e-05,2934.6,2934.4,10.621]
[1765899304542,1.056e-05,2934.6,2934.4,10.79142]
[1765899304738,3.2078,2936.2,2935.1,1.4132]
[1765899304940,5.3678,2936.2,2935.8,1.4132]
[1765899305247,3.2078,2936.2,2935.8,1.4132]
[1765899305439,40.8,2936.7,2935.9,3.2078]
[1765899305440,3.2078,2936.6,2935.9,3.2078]
[1765899305641,5.50098171,2936.6,2936.0,0.00511056]
[1765899305845,3.2078,2936.3,2936.0,0.00511056]
[1765899306140,2.23,2936.3,2936.0,0.00511056]
[1765899306336,5.4378,2936.3,2936.0,0.00511056]
[1765899306943,3.2078,2936.1,2936.0,1.056e-05]
[1765899307145,5.5178,2936.1,2935.1,1.4132]
[1765899307442,3.2078,2935.5,2935.1,1.4132]
[1765899307643,5.4978,2935.5,2935.1,1.4132]
[1765899308040,3.2078,2935.2,2935.1,1.41696088]
[1765899308238,5.5978,2935.2,2935.1,0.00376088]